bitfinex-derivatives/quotes_SOLF0:USTF0_20250603
["timestamp","ask_amount","ask_price","bid_price","bid_amount"]
[1748991884437,0.04117065,155.84,155.83,19.78524971]
[1748991884638,0.04117065,155.84,155.83,13.82024806]
[1748991887435,6.41,155.9,155.87,6.411]
[1748991888337,6.4555564,155.9,155.87,6.45649288]
[1748991888540,6.4555564,155.9,155.87,0.04549288]
[1748991888541,6.4105,155.89,155.87,0.04549288]
[1748991890949,6.4556564,155.9,155.87,6.45649288]
[1748991891247,6.4556564,155.9,155.87,0.04549288]
[1748991893245,0.0455564,155.9,155.88,6.4108]
[1748991894040,6.4556564,155.9,155.88,6.4108]
[1748991894242,0.0455564,155.9,155.87,6.45649288]
[1748991894846,6.4557564,155.9,155.87,6.45649288]
[1748991898246,6.4557564,155.9,155.88,6.4107]
[1748991900947,0.0455564,155.9,155.88,6.4107]
[1748991901852,0.0455564,155.9,155.89,6.4104]
[1748991904751,0.0455564,155.9,155.88,13.81794806]
[1748991905750,0.0455564,155.9,155.87,0.04549288]
[1748991905957,7.45290446,155.9,155.87,0.04549288]
[1748991906755,6.4108,155.88,155.87,0.04549288]
[1748991917560,13.81814806,155.88,155.87,0.04549288]
[1748991921857,6.4108,155.88,155.87,0.04549288]
[1748991922260,0.0455564,155.9,155.87,0.04549288]
[1748991922863,6.4108,155.89,155.87,0.04549288]
[1748991923265,0.0455564,155.9,155.87,6.00858535]
[1748991924062,0.0455564,155.9,155.89,6.4104]
[1748991925757,0.0455564,155.9,155.89,12.37102569]
[1748991926262,0.0455564,155.9,155.89,6.4104]
[1748991927764,0.0455564,155.9,155.89,12.37315861]
[1748991929661,6.4085,155.94,155.91,6.4092]
[1748991929967,14.81469612,155.92,155.84,5.95939154]
[1748991930266,7.40734806,155.88,155.84,5.95939154]
[1748991930466,7.40734806,155.88,155.82,5.95939154]
[1748991930663,0.04254703,155.87,155.83,0.04630822]
[1748991930871,7.40734806,155.85,155.83,0.04630822]
[1748991931167,6.4124,155.84,155.83,0.04630822]
[1748991939773,13.81954806,155.85,155.83,0.04630822]
[1748991939972,7.40734806,155.85,155.83,0.04630822]
[1748991940373,6.4125,155.84,155.83,0.04630822]
[1748991945390,13.81984806,155.84,155.83,0.04630822]
[1748991946591,6.4125,155.84,155.83,0.04630822]
[1748991950491,7.40734806,155.84,155.74,5.95577973]
[1748991950690,7.40734806,155.83,155.76,7.40734806]
[1748991950892,7.40734806,155.83,155.76,9.59134806]
[1748991951091,6.4149,155.78,155.76,9.59134806]
[1748991951291,7.40734806,155.81,155.76,2.184]
[1748991951485,7.40734806,155.84,155.75,38.66092589]
[1748991951486,6.4149,155.78,155.77,0.04714217]
[1748991960903,6.4146,155.79,155.77,0.04714217]
[1748991961202,0.04244828,155.8,155.77,0.04714217]
[1748991961797,0.04244828,155.8,155.78,6.4146]
[1748991961999,0.04244828,155.8,155.77,0.04714217]
[1748991962000,0.04244828,155.8,155.77,7.45449023]
[1748991962705,0.04244828,155.8,155.77,0.04714217]
[1748991963303,6.4149,155.78,155.77,0.04714217]
[1748991965903,13.82224806,155.78,155.77,0.04714217]
[1748991968102,6.4149,155.78,155.77,0.04714217]
[1748991969401,6.4147,155.79,155.77,0.04714217]
[1748991969603,0.04244828,155.8,155.77,6.46244217]
[1748991970002,6.45694828,155.8,155.77,6.46244217]
[1748991970210,0.04244828,155.8,155.77,6.46244217]
[1748991971009,6.4146,155.79,155.77,6.46244217]
[1748991977116,6.4146,155.79,155.77,0.04714217]
[1748991980922,6.4146,155.79,155.77,6.46244217]
[1748991985824,0.04244828,155.8,155.77,0.04714217]
[1748991986222,6.4149,155.79,155.77,0.04714217]
[1748991986725,6.4148,155.79,155.77,0.04714217]
[1748991987121,0.04244828,155.8,155.77,0.04714217]
[1748991988123,6.4148,155.79,155.77,0.04714217]
[1748991988322,0.04244828,155.8,155.77,0.04714217]
[1748991988928,6.4149,155.79,155.77,0.04714217]
[1748991989227,0.04244828,155.8,155.77,0.04714217]
[1748991989527,6.4149,155.78,155.77,0.04714217]
[1748991991225,13.82224806,155.78,155.77,0.04714217]
[1748991991520,6.4162,155.75,155.74,5.97030018]
[1748991991732,7.40734806,155.76,155.72,5.97030018]
[1748991992320,6.4168,155.74,155.72,12.38770018]
[1748991992631,6.4168,155.74,155.71,8.20100122]
[1748991993034,6.4168,155.74,155.71,8.20826542]
[1748991993337,6.417,155.73,155.72,5.97756438]
[1748991994128,0.04417625,155.75,155.71,0.04670104]
[1748991994129,6.4174,155.72,155.71,6.02426542]
[1748991995222,6.4174,155.72,155.71,0.04670104]
[1748991995424,6.4174,155.72,155.71,6.02426542]
[1748991995826,6.4174,155.72,155.71,0.04670104]
[1748992006933,6.4171,155.73,155.71,0.04670104]
[1748992007344,0.04417625,155.75,155.71,0.04670104]
[1748992007647,0.04417625,155.75,155.73,6.4167]
[1748992008345,6.46047625,155.75,155.73,6.4167]
[1748992009340,6.4166,155.74,155.72,6.4172]
[1748992011435,0.04417625,155.75,155.73,6.4168]
[1748992011637,0.04417625,155.75,155.71,6.01543247]
[1748992011844,6.46047625,155.75,155.71,6.01543247]
[1748992012534,0.04417625,155.75,155.72,7.40734806]
[1748992012741,0.04417625,155.75,155.74,7.40734806]
[1748992013736,6.4145,155.79,155.74,13.37166409]
[1748992013937,32.44,155.83,155.76,7.40734806]
[1748992014151,39.84734806,155.83,155.76,7.40734806]
[1748992014449,6.4139,155.81,155.78,6.4149]
[1748992014642,6.46220882,155.81,155.78,6.45749276]
[1748992016143,6.4142,155.8,155.78,0.04259276]
[1748992016748,6.4142,155.8,155.78,6.45739276]
[1748992018142,6.46220882,155.81,155.78,6.45739276]
[1748992019052,6.4141,155.8,155.78,6.45739276]
[1748992019253,6.4141,155.8,155.78,0.04259276]
[1748992019439,0.04830882,155.81,155.78,0.04259276]
[1748992021053,6.4145,155.79,155.78,0.04259276]
[1748992028159,0.04830882,155.81,155.78,0.04259276]
[1748992028755,6.46200882,155.81,155.79,6.4142]
[1748992029350,6.46200882,155.81,155.78,0.04259276]
[1748992029351,6.4141,155.8,155.78,6.45729276]
[1748992029558,6.4141,155.8,155.78,0.04259276]
[1748992031162,6.4145,155.79,155.78,0.04259276]
[1748992037856,6.4143,155.8,155.78,0.04259276]
[1748992038360,0.04830882,155.81,155.78,0.04259276]
[1748992038961,0.04830882,155.81,155.8,6.4141]
[1748992039163,586.58,155.89,155.8,7.40734806]
[1748992039360,586.58,155.89,155.82,7.40734806]
[1748992039361,32.3,155.89,155.82,7.40734806]
[1748992039563,32.3,155.89,155.85,6.412]
[1748992039564,6.4115,155.87,155.85,6.412]
[1748992039765,32.3,155.89,155.85,6.412]
[1748992039968,6.4113,155.87,155.84,6.4122]
[1748992040166,0.04339273,155.87,155.84,6.45912861]
[1748992040364,0.04339273,155.87,155.84,0.04692861]
[1748992040571,6.412,155.85,155.84,0.04692861]
[1748992042267,7.40734806,155.85,155.8,32.3]
[1748992042470,7.40734806,155.83,155.77,32.3]
[1748992042761,32.3,155.89,155.77,32.3]
[1748992042762,7.40734806,155.81,155.77,32.3]
[1748992042961,6.4149,155.78,155.75,12.37123849]
[1748992043177,6.4149,155.78,155.74,45.65540227]
[1748992043366,6.45548237,155.78,155.74,45.70426707]
[1748992043568,6.45548237,155.78,155.74,39.75621286]
[1748992043874,0.04058237,155.78,155.76,6.4156]
[1748992048172,6.45558237,155.78,155.76,6.4156]
[1748992048364,6.45558237,155.78,155.75,6.4161]
[1748992048766,6.45558237,155.78,155.74,45.70803416]
[1748992048966,0.04058237,155.78,155.76,6.4156]
[1748992049775,0.04058237,155.78,155.75,6.4159]
[1748992050072,0.04058237,155.78,155.75,5.9518213]
[1748992050970,0.04058237,155.78,155.75,12.3678213]
[1748992051169,7.40734806,155.77,155.74,32.3488648]
[1748992051675,6.4161,155.76,155.74,0.0488648]
[1748992051873,7.40734806,155.77,155.74,0.0488648]
[1748992052374,6.4161,155.75,155.74,0.0488648]
[1748992054976,13.82314806,155.76,155.74,0.0488648]
[1748992055176,0.04058237,155.78,155.74,0.0488648]
[1748992055580,0.04058237,155.78,155.76,6.4154]
[1748992056489,0.04058237,155.78,155.74,6.01850077]
[1748992056974,6.4156,155.77,155.74,12.43470077]
[1748992058978,6.4156,155.77,155.74,12.43332019]
[1748992060486,6.45558237,155.78,155.75,6.416]
[1748992060788,0.04058237,155.78,155.74,6.01712019]
[1748992060979,0.04058237,155.78,155.76,6.4155]
[1748992061788,0.04058237,155.78,155.75,6.4159]
[1748992061986,0.04058237,155.78,155.74,6.01712019]
[1748992062182,6.416,155.76,155.74,6.01712019]
[1748992062486,0.04058237,155.78,155.74,6.01712019]
[1748992062875,0.04058237,155.78,155.74,12.43382878]
[1748992063788,0.04058237,155.78,155.74,6.01752878]
[1748992063976,7.40734806,155.77,155.74,0.0488648]
[1748992064783,6.4161,155.75,155.74,0.0488648]
[1748992065788,7.40734806,155.77,155.74,0.0488648]
[1748992065987,0.04058237,155.78,155.74,0.0488648]
[1748992066387,6.4161,155.76,155.74,6.4654648]
[1748992067190,6.4161,155.76,155.74,0.0488648]
[1748992067878,6.4161,155.75,155.74,0.0488648]
[1748992072298,0.04058237,155.78,155.74,0.0488648]
[1748992072985,0.04058237,155.78,155.74,13.42205926]
[1748992073195,0.04058237,155.78,155.76,6.4157]
[1748992073391,0.04058237,155.78,155.75,32.3]
[1748992073796,0.04058237,155.78,155.77,6.4153]
[1748992074098,0.04058237,155.78,155.75,38.2658464]
[1748992074595,6.45568237,155.78,155.75,44.6817464]
[1748992074787,6.45568237,155.78,155.75,44.67767707]
[1748992074993,0.04058237,155.78,155.75,38.26177707]
[1748992075190,0.04058237,155.78,155.76,6.4155]
[1748992076493,0.04058237,155.78,155.77,6.4153]
[1748992078101,0.04058237,155.78,155.77,13.82264806]
[1748992078990,0.04058237,155.78,155.77,6.4153]
[1748992079189,0.04058237,155.78,155.77,13.3672324]
[1748992079792,0.04058237,155.78,155.77,5.95988434]
[1748992079989,0.04058237,155.78,155.75,32.3]
[1748992080399,6.4155,155.77,155.75,32.3]
[1748992080697,0.04058237,155.78,155.75,32.3]
[1748992080899,6.4157,155.76,155.75,32.3]
[1748992082299,6.4161,155.75,155.74,6.01281839]
[1748992082503,6.4161,155.75,155.74,0.0488648]
[1748992085322,6.4178,155.71,155.7,5.96395359]
[1748992085716,7.40734806,155.76,155.7,5.96395359]
[1748992085908,6.4175,155.72,155.7,5.96395359]
[1748992086508,0.04473075,155.73,155.7,5.96395359]
[1748992087726,6.4178,155.71,155.7,5.96395359]
[1748992088209,6.4175,155.72,155.7,5.96395359]
[1748992090518,0.04473075,155.73,155.7,5.96395359]
[1748992091224,6.4176,155.72,155.7,5.96395359]
[1748992091427,6.4176,155.72,155.7,5.97547847]
[1748992092125,0.04473075,155.73,155.7,5.97547847]
[1748992092126,6.4178,155.71,155.7,5.97547847]
[1748992092324,0.04473075,155.73,155.7,5.97547847]
[1748992092720,6.4177,155.72,155.7,5.97547847]
[1748992092920,0.04473075,155.73,155.7,5.97547847]
[1748992093119,0.04473075,155.73,155.69,47.90883319]
[1748992093317,0.04473075,155.73,155.7,5.9741153]
[1748992093528,6.4182,155.7,155.69,47.90747002]
[1748992093722,0.04473075,155.73,155.69,47.90747002]
[1748992094118,6.418,155.71,155.69,47.90747002]
[1748992094320,6.418,155.71,155.69,54.32607002]
[1748992097320,6.418,155.71,155.69,54.32498626]
[1748992097728,0.04473075,155.73,155.7,6.4182]
[1748992098027,0.04473075,155.73,155.69,47.90638626]
[1748992098230,6.4181,155.71,155.69,47.90638626]
[1748992098721,6.4181,155.71,155.69,48.35175472]
[1748992098926,6.4176,155.72,155.69,54.32419718]
[1748992099129,0.04473075,155.73,155.69,47.90579718]
[1748992099320,0.04473075,155.73,155.71,7.40734806]
[1748992099518,0.04473075,155.73,155.72,5.9713275]
[1748992100024,6.4154,155.77,155.74,6.4163]
[1748992100215,7.40734806,155.79,155.72,5.9713275]
[1748992100422,6.4161,155.76,155.73,6.4168]
[1748992100730,7.40734806,155.79,155.72,5.9713275]
[1748992100921,6.4164,155.75,155.74,0.04147159]
[1748992106329,6.4178,155.71,155.7,5.96670208]
[1748992107030,6.4182,155.7,155.68,52.09295014]
[1748992107230,7.40734806,155.75,155.69,6.4185]
[1748992107426,0.0431246,155.71,155.7,0.04320933]
[1748992108428,6.4611246,155.71,155.7,0.04320933]
[1748992109635,6.419,155.68,155.66,5.96670208]
[1748992109933,7.45047266,155.71,155.66,12.38630208]
[1748992110137,6.4189,155.69,155.66,12.38630208]
[1748992110333,6.4189,155.69,155.66,5.96670208]
[1748992110535,0.0431246,155.71,155.67,6.4191]
[1748992110932,6.4183,155.7,155.67,6.4191]
[1748992112730,0.0431246,155.71,155.67,6.4191]
[1748992112930,0.0431246,155.71,155.68,6.419]
[1748992113129,6.4612246,155.71,155.68,6.419]
[1748992113325,0.0431246,155.71,155.68,7.40734806]
[1748992113529,0.0431246,155.71,155.7,6.4182]
[1748992113930,0.0431246,155.71,155.69,6.4184]
[1748992114126,0.0431246,155.71,155.68,13.37199836]
[1748992114329,0.0431246,155.71,155.69,5.9646503]
[1748992114534,0.0431246,155.71,155.69,6.4184]
[1748992114734,6.4610246,155.71,155.69,6.4184]
[1748992115735,6.4610246,155.71,155.68,6.4188]
[1748992116338,0.0431246,155.71,155.66,13.41412132]
[1748992116726,6.4611246,155.71,155.68,6.4188]
[1748992117742,0.0431246,155.71,155.67,5.9616272]
[1748992118231,0.0431246,155.71,155.69,6.4184]
[1748992118834,0.0431246,155.71,155.67,5.9616272]
[1748992119335,0.0431246,155.71,155.69,6.4184]
[1748992121040,6.4610246,155.71,155.69,6.4184]
[1748992122133,0.0431246,155.71,155.69,6.4184]
[1748992123235,0.0431246,155.71,155.69,12.3847475]
[1748992123441,6.4611246,155.71,155.69,5.9663475]
[1748992124931,0.0431246,155.71,155.67,15.37060467]
[1748992125132,0.0431246,155.71,155.7,5.97874591]
[1748992127136,0.0431246,155.71,155.7,6.4182]
[1748992130843,0.0431246,155.71,155.7,12.39966497]
[1748992131244,0.0431246,155.71,155.7,6.4182]
[1748992132044,0.0431246,155.71,155.7,14.38145661]
[1748992136340,7.40734806,155.78,155.72,6.417]
[1748992136540,11.75824806,155.8,155.73,13.38479189]
[1748992136745,11.75824806,155.8,155.74,6.4162]
[1748992137253,0.04304855,155.79,155.75,0.04442831]
[1748992137553,0.04304855,155.79,155.76,6.4156]
[1748992138041,6.4152,155.78,155.76,6.4156]
[1748992138844,0.04304855,155.79,155.75,13.42548736]
[1748992139052,0.04304855,155.79,155.78,5.97371099]
[1748992139346,0.04304855,155.79,155.78,12.38861099]
[1748992140851,87.1377246,155.87,155.81,6.4134]
[1748992141450,6.4127,155.84,155.81,6.4134]
[1748992141658,6.45337471,155.84,155.81,0.04393832]
[1748992142549,0.04067471,155.84,155.81,0.04393832]
[1748992143553,6.4133,155.82,155.81,0.04393832]
[1748992147954,6.4149,155.78,155.77,32.28]
[1748992153963,6.46187252,155.79,155.77,32.28]
[1748992154368,0.04717252,155.79,155.77,32.28]
[1748992154872,6.4149,155.78,155.77,32.28]
[1748992159972,6.4149,155.78,155.76,0.04388608]
[1748992160178,6.4149,155.78,155.76,6.45958608]
[1748992161687,6.4149,155.78,155.76,0.04388608]
[1748992162190,6.4149,155.78,155.76,6.45958608]
[1748992163687,0.04717252,155.79,155.76,0.04388608]
[1748992164201,6.4151,155.78,155.76,0.04388608]
[1748992164384,6.4151,155.78,155.76,6.45958608]
[1748992164987,6.4151,155.78,155.76,0.04388608]
[1748992166185,6.4151,155.78,155.76,6.45958608]
[1748992166584,6.4151,155.78,155.76,0.04388608]
[1748992168990,6.4151,155.78,155.76,6.45958608]
[1748992169391,6.46187252,155.79,155.76,6.45958608]
[1748992169589,0.04717252,155.79,155.77,7.40734806]
[1748992169997,0.04717252,155.79,155.78,38.6749]
[1748992171091,0.04717252,155.79,155.78,44.62439541]
[1748992171996,32.26,155.87,155.78,32.26]
[1748992172196,32.26,155.87,155.82,7.40734806]
[1748992172495,6.4123,155.85,155.82,13.82034806]
[1748992172887,6.4125,155.84,155.82,13.86745806]
[1748992174900,6.4125,155.84,155.82,0.04711]
[1748992176596,6.4128,155.83,155.82,0.04711]
[1748992179205,6.4126,155.84,155.82,0.04711]
[1748992179493,0.04619106,155.85,155.82,0.04711]
[1748992179696,6.4124,155.84,155.82,0.04711]
[1748992180992,6.4128,155.83,155.82,0.04711]
[1748992181893,6.4126,155.84,155.82,0.04711]
[1748992182101,0.04619106,155.85,155.82,0.04711]
[1748992182494,6.4124,155.84,155.82,0.04711]
[1748992184305,6.45829106,155.85,155.82,0.04711]
[1748992185205,6.45829106,155.85,155.82,6.46001]
[1748992185907,0.04619106,155.85,155.83,6.4126]
[1748992186606,0.04619106,155.85,155.82,6.46021]
[1748992187103,6.4128,155.83,155.82,0.04711]
[1748992187504,4.78784641,155.85,155.82,0.04711]
[1748992187699,6.4126,155.84,155.82,4.78876535]
[1748992189407,6.4126,155.84,155.82,0.04711]
[1748992190111,6.4128,155.83,155.82,0.04711]
[1748992192104,6.4126,155.84,155.82,0.04711]
[1748992192712,6.4128,155.83,155.82,0.04711]
[1748992200110,6.4145,155.79,155.78,32.26]
[1748992200310,7.40773528,155.8,155.75,5.96001821]
[1748992200508,7.40773528,155.8,155.73,7.94075351]
[1748992200509,7.40773528,155.8,155.74,5.96001821]
[1748992200906,6.4161,155.75,155.74,5.96001821]
[1748992201313,0.0472954,155.76,155.74,7.40773528]
[1748992201612,0.0472954,155.76,155.74,19.79130959]
[1748992202509,0.0472954,155.76,155.74,13.82403528]
[1748992202911,0.0472954,155.76,155.75,6.4161]
[1748992203109,0.0472954,155.76,155.75,12.38337431]
[1748992205518,0.0472954,155.76,155.75,12.37977281]
[1748992207121,0.0472954,155.76,155.75,5.96367281]
[1748992207320,0.0472954,155.76,155.74,7.40773528]
[1748992207321,0.0472954,155.76,155.74,13.37140809]
[1748992207911,6.4631954,155.76,155.74,13.37140809]
[1748992208212,0.0472954,155.76,155.74,7.40773528]
[1748992208516,0.0472954,155.76,155.74,13.82423528]
[1748992209823,0.0472954,155.76,155.73,6.01669598]
[1748992210119,0.0472954,155.76,155.73,0.04773092]
[1748992210917,6.4164,155.75,155.73,0.04773092]
[1748992211118,0.0472954,155.76,155.73,0.04773092]
[1748992211323,6.4166,155.74,155.73,0.04773092]
[1748992211622,0.0472954,155.76,155.73,4.79403819]
[1748992211826,0.0472954,155.76,155.75,4.74630727]
[1748992212023,0.0472954,155.76,155.75,11.16240727]
[1748992212523,0.0472954,155.76,155.75,17.13137233]
[1748992213219,0.0472954,155.76,155.75,19.79724864]
[1748992213522,0.0472954,155.76,155.75,19.79476698]
[1748992215118,0.0472954,155.76,155.75,13.37866698]
[1748992215317,0.0472954,155.76,155.74,12.3828834]
[1748992215820,0.0472954,155.76,155.75,6.4161]
[1748992216020,0.0472954,155.76,155.74,5.9664834]
[1748992216424,0.0472954,155.76,155.74,12.3828834]
[1748992217118,6.4631954,155.76,155.74,12.3828834]
[1748992217325,6.4631954,155.76,155.73,13.42768735]
[1748992217326,0.0472954,155.76,155.73,13.42768735]
[1748992217918,6.4161,155.75,155.73,19.84438735]
[1748992218119,0.0472954,155.76,155.73,19.84438735]
[1748992218621,0.0472954,155.76,155.75,7.41218358]
[1748992218819,0.0472954,155.76,155.75,5.96777285]
[1748992219020,0.0472954,155.76,155.74,19.79635643]
[1748992219218,0.0472954,155.76,155.74,13.82858358]
[1748992219626,0.0472954,155.76,155.74,12.38417285]
[1748992219924,0.0472954,155.76,155.74,6.4164]
[1748992221818,0.0472954,155.76,155.73,6.0139703]
[1748992222419,0.0472954,155.76,155.75,6.4161]
[1748992225728,36.6306,155.83,155.75,6.4161]
[1748992225729,32.24,155.87,155.75,7.41218358]
[1748992225926,39.65218358,155.87,155.8,7.41218358]
[1748992226126,6.4131,155.83,155.8,7.41218358]
[1748992226328,39.65218358,155.87,155.8,7.41218358]
[1748992226732,6.4129,155.83,155.82,0.04825431]
[1748992229622,6.4126,155.84,155.82,0.04825431]
[1748992229826,6.4126,155.84,155.82,6.46145431]
[1748992230130,6.4126,155.84,155.82,0.04825431]
[1748992230623,0.04201232,155.85,155.82,7.46043789]
[1748992231420,6.45401232,155.85,155.82,13.87333789]
[1748992232226,0.04201232,155.85,155.83,6.4127]
[1748992232431,0.04201232,155.85,155.84,7.41218358]
[1748992232934,0.04201232,155.85,155.84,13.82458358]
[1748992234930,32.24,155.91,155.86,6.4113]
[1748992235131,32.24,155.91,155.86,13.82348358]
[1748992235328,6.4102,155.9,155.86,13.82348358]
[1748992235533,6.4102,155.9,155.86,7.41218358]
[1748992235739,6.4107,155.89,155.86,7.41218358]
[1748992235939,0.0444742,155.89,155.86,7.45300342]
[1748992237330,6.4111,155.88,155.86,7.45300342]
[1748992239643,6.4112,155.87,155.86,7.45300342]
[1748992239836,0.0444742,155.89,155.86,7.45300342]
[1748992240736,6.4112,155.87,155.86,7.45300342]
[1748992241946,6.411,155.88,155.86,7.45300342]
[1748992242843,6.4112,155.87,155.86,0.04081984]
[1748992247450,6.4133,155.82,155.81,32.22]
[1748992247944,6.413,155.83,155.81,32.22]
[1748992249149,6.413,155.83,155.81,38.6336]
[1748992249557,6.413,155.83,155.81,32.22]
[1748992252548,0.04422856,155.84,155.81,32.22]
[1748992253160,6.45682856,155.84,155.81,38.6335]
[1748992253352,0.04422856,155.84,155.82,7.41218358]
[1748992254662,0.04422856,155.84,155.83,6.4128]
[1748992255256,0.04422856,155.84,155.82,7.41218358]
[1748992257158,6.4128,155.83,155.82,7.41218358]
[1748992258158,6.45682856,155.84,155.82,7.41218358]
[1748992258755,0.04422856,155.84,155.82,7.41218358]
[1748992260066,0.04422856,155.84,155.83,6.4128]
[1748992264967,0.04422856,155.84,155.82,13.82528358]
[1748992265174,0.04422856,155.84,155.81,39.63218358]
[1748992265971,6.45692856,155.84,155.82,6.4131]
[1748992267671,0.04422856,155.84,155.82,6.4131]
[1748992268066,0.04422856,155.84,155.83,13.82498358]
[1748992268367,2.2053,155.92,155.83,7.41218358]
[1748992268569,32.2,155.93,155.88,13.82268358]
[1748992269373,6.4099,155.91,155.89,0.04163788]
[1748992269870,0.04356395,155.92,155.89,0.04163788]
[1748992270174,6.41,155.9,155.89,0.04163788]
[1748992271577,6.4097,155.91,155.89,0.04163788]
[1748992272666,6.41,155.9,155.89,0.04163788]
[1748992275681,6.4097,155.91,155.89,0.04163788]
[1748992276775,6.4097,155.91,155.89,6.45203788]
[1748992276978,6.45286395,155.92,155.89,0.04163788]
[1748992277379,6.45286395,155.92,155.89,6.45183788]
[1748992278175,0.04356395,155.92,155.89,0.04163788]
[1748992278777,6.4078,155.96,155.91,5.95765691]
[1748992279078,586.36,155.99,155.92,13.36984049]
[1748992279266,6.4082,155.95,155.92,13.36984049]
[1748992279472,586.36,155.99,155.91,5.95765691]
[1748992279473,7.41218358,155.96,155.91,5.95765691]
[1748992279672,7.41218358,155.96,155.9,13.36984049]
[1748992279973,6.4091,155.92,155.91,0.04743802]
[1748992281073,7.41218358,155.92,155.86,38.15765691]
[1748992281373,7.41218358,155.92,155.86,32.2]
[1748992281778,6.4112,155.87,155.86,32.2]
[1748992281978,0.0406977,155.88,155.86,32.2]
[1748992282179,6.4516977,155.88,155.86,32.2]
[1748992282678,0.0406977,155.88,155.86,39.61218358]
[1748992282880,0.0406977,155.88,155.86,45.56984049]
[1748992284078,6.4514977,155.88,155.86,51.98124049]
[1748992284381,0.0406977,155.88,155.86,45.56984049]
[1748992284777,0.0406977,155.88,155.86,51.98124049]
[1748992285473,0.0406977,155.88,155.86,51.97554343]
[1748992286273,6.4515977,155.88,155.86,46.02358358]
[1748992286475,6.4515977,155.88,155.86,51.97554343]
[1748992286676,6.4515977,155.88,155.86,39.61218358]
[1748992286876,6.4515977,155.88,155.86,45.56414343]
[1748992287076,6.4515977,155.88,155.86,45.56232846]
[1748992287272,6.4515977,155.88,155.86,51.97392846]
[1748992288183,0.0406977,155.88,155.86,51.97392846]
[1748992290075,0.0406977,155.88,155.87,6.4112]
[1748992290784,0.0406977,155.88,155.86,51.97372846]
[1748992291083,0.0406977,155.88,155.86,39.61218358]
[1748992291382,0.0406977,155.88,155.86,45.55789076]
[1748992293076,0.0406977,155.88,155.87,6.4112]
[1748992293684,0.0406977,155.88,155.87,12.35690718]
[1748992295291,0.0406977,155.88,155.87,12.35817211]
[1748992299093,0.0406977,155.88,155.87,12.36068724]
[1748992299487,39.61218358,155.95,155.89,6.4101]
[1748992299992,6.4093,155.92,155.88,13.36167082]
[1748992300185,6.4093,155.92,155.88,7.41218358]
[1748992300585,0.04695571,155.92,155.9,6.4098]
[1748992300988,0.04695571,155.92,155.89,12.35958724]
[1748992301394,6.45635571,155.92,155.89,12.35958724]
[1748992302296,6.45635571,155.92,155.9,6.41]
[1748992302493,6.4097,155.91,155.89,5.94948724]
[1748992302699,0.04695571,155.92,155.88,5.99679956]
[1748992302997,0.04695571,155.92,155.88,0.04731232]
[1748992304292,6.4102,155.9,155.88,6.45801232]
[1748992305799,0.04695571,155.92,155.89,6.4104]
[1748992306297,6.4096,155.91,155.89,6.4104]
[1748992306499,0.04695571,155.92,155.89,6.4104]
[1748992306700,0.04695571,155.92,155.89,5.94948724]
[1748992307203,0.04695571,155.92,155.9,12.35948724]
[1748992307393,0.04695571,155.92,155.9,6.41]
[1748992307997,6.45615571,155.92,155.89,12.35968724]
[1748992309604,0.04695571,155.92,155.9,13.36167082]
[1748992309801,0.04695571,155.92,155.9,7.41218358]
[1748992310000,0.04695571,155.92,155.9,13.36167082]
[1748992310802,0.04695571,155.92,155.9,7.41218358]
[1748992311002,6.45615571,155.92,155.9,19.7748108]
[1748992311401,0.04695571,155.92,155.9,5.95282722]
[1748992312705,6.45625571,155.92,155.9,12.36282722]
[1748992312903,0.04695571,155.92,155.91,32.18]
[1748992313093,39.59218358,156.02,155.91,32.18]
[1748992313294,32.18,156.02,155.96,5.95386021]
[1748992313897,7.41218358,156.01,155.95,45.54604379]
[1748992314104,0.04886834,156.0,155.96,0.04464717]
[1748992314394,0.04886834,156.0,155.96,5.99850738]
[1748992314593,0.04886834,156.0,155.96,0.04464717]
[1748992315000,6.4067,155.98,155.96,12.398442]
[1748992315599,6.4067,155.98,155.96,6.45194717]
[1748992316301,6.4064,155.99,155.96,6.45194717]
[1748992316505,0.04886834,156.0,155.97,6.4071]
[1748992316803,0.04886834,156.0,155.97,7.41218358]
[1748992317008,0.04886834,156.0,155.98,6.4064]
[1748992317206,0.04886834,156.0,155.97,7.41218358]
[1748992317605,0.04886834,156.0,155.99,6.4063]
[1748992318205,0.04886834,156.0,155.98,6.4065]
[1748992320507,0.04886834,156.0,155.99,6.4063]
[1748992320721,0.04886834,156.0,155.99,13.81848358]
[1748992322620,4.6415732,156.0,155.99,13.81848358]
[1748992322818,4.64157338,156.0,155.99,13.81848358]
[1748992323017,0.04886834,156.0,155.99,45.95848358]
[1748992323716,4.64157299,156.0,155.99,45.95848358]
[1748992323921,0.04886834,156.0,155.99,45.95848358]